[Event "January 9 Early 2024"]
[Site "https://www.chess.com"]
[Date "2024.01.11"]
[Round "2"]
[White "Halkias, Stelios"]
[Black "Harriott, Tyrell"]
[Result "1-0"]
[Board "325"]
[TimeControl "180+1"]
[WhiteFideId "4201809"]
[BlackFideId "2086484"]
[WhiteElo "2729"]
[BlackElo "2345"]
[WhiteTeam "GRE"]
[BlackTeam "USA"]
[WhiteClock "0:00:21"]
[BlackClock "0:00:09"]

1. Nf3 {[%clk 0:03:00]}  d5 {[%clk 0:02:54]} 2. d4 {[%clk 0:03:00]}  e6 {[%clk 0:02:54]} 3. c4 {[%clk 0:03:00]}  c6 {[%clk 0:02:54]} 4. g3 {[%clk 0:03:00]}  Bd6 {[%clk 0:02:53]} 5. Bg2 {[%clk 0:03:00]}  f5 {[%clk 0:02:49]} 6. O-O {[%clk 0:02:59]}  Nf6 {[%clk 0:02:48]} 7. b3 {[%clk 0:02:57]}  O-O {[%clk 0:02:45]} 8. Ba3 {[%clk 0:02:57]}  f4 {[%clk 0:02:35]} 9. Qc1 {[%clk 0:02:47]}  fxg3 {[%clk 0:02:33]} 10. hxg3 {[%clk 0:02:46]}  Bxa3 {[%clk 0:02:26]} 11. Nxa3 {[%clk 0:02:37]}  h6 {[%clk 0:02:23]} 12. Nc2 {[%clk 0:02:36]}  Ng4 {[%clk 0:02:22]} 13. Ne3 {[%clk 0:02:34]}  Nf6 {[%clk 0:02:15]} 14. Ne5 {[%clk 0:02:18]}  Qe8 {[%clk 0:02:13]} 15. Qc2 {[%clk 0:02:03]}  Nbd7 {[%clk 0:02:06]} 16. Rad1 {[%clk 0:01:54]}  Nxe5 {[%clk 0:02:02]} 17. dxe5 {[%clk 0:01:53]}  Nd7 {[%clk 0:02:02]} 18. f4 {[%clk 0:01:51]}  Qh5 {[%clk 0:02:00]} 19. Rf2 {[%clk 0:01:38]}  Rf7 {[%clk 0:01:43]} 20. Bf3 {[%clk 0:01:14]}  Qh3 {[%clk 0:01:35]} 21. Rg2 {[%clk 0:01:14]}  h5 {[%clk 0:01:08]} 22. Qg6 {[%clk 0:01:12]}  Nf8 {[%clk 0:01:03]} 23. Qxh5 {[%clk 0:01:09]}  Qxh5 {[%clk 0:01:00]} 24. Bxh5 {[%clk 0:01:09]}  g6 {[%clk 0:00:59]} 25. Bf3 {[%clk 0:01:09]}  Bd7 {[%clk 0:00:56]} 26. Ng4 {[%clk 0:01:07]}  Kg7 {[%clk 0:00:51]} 27. e4 {[%clk 0:01:05]}  dxc4 {[%clk 0:00:47]} 28. bxc4 {[%clk 0:01:03]}  c5 {[%clk 0:00:47]} 29. Nf6 {[%clk 0:01:02]}  Bc6 {[%clk 0:00:47]} 30. g4 {[%clk 0:01:01]}  Nh7 {[%clk 0:00:45]} 31. g5 {[%clk 0:01:01]}  Rh8 {[%clk 0:00:38]} 32. Rh2 {[%clk 0:00:57]}  a6 {[%clk 0:00:35]} 33. Rd6 {[%clk 0:00:52]}  Re7 {[%clk 0:00:32]} 34. Kf2 {[%clk 0:00:48]}  Nf8 {[%clk 0:00:29]} 35. Rxh8 {[%clk 0:00:47]}  Kxh8 {[%clk 0:00:29]} 36. Ke3 {[%clk 0:00:47]}  Kg7 {[%clk 0:00:29]} 37. Bg4 {[%clk 0:00:46]}  Kf7 {[%clk 0:00:29]} 38. Kd2 {[%clk 0:00:44]}  Rc7 {[%clk 0:00:29]} 39. Ke3 {[%clk 0:00:43]}  Re7 {[%clk 0:00:29]} 40. Bd1 {[%clk 0:00:43]}  Rc7 {[%clk 0:00:29]} 41. a4 {[%clk 0:00:43]}  Re7 {[%clk 0:00:28]} 42. a5 {[%clk 0:00:43]}  Rc7 {[%clk 0:00:28]} 43. Bg4 {[%clk 0:00:41]}  Re7 {[%clk 0:00:28]} 44. Bh3 {[%clk 0:00:41]}  Rc7 {[%clk 0:00:27]} 45. Ng4 {[%clk 0:00:42]}  Ke7 {[%clk 0:00:22]} 46. Nf2 {[%clk 0:00:40]}  Rd7 {[%clk 0:00:21]} 47. Nd3 {[%clk 0:00:38]}  Rxd6 {[%clk 0:00:20]} 48. exd6+ {[%clk 0:00:38]}  Kxd6 {[%clk 0:00:21]} 49. e5+ {[%clk 0:00:38]}  Kc7 {[%clk 0:00:21]} 50. Nxc5 {[%clk 0:00:39]}  Bd7 {[%clk 0:00:20]} 51. Kd4 {[%clk 0:00:38]}  Bc8 {[%clk 0:00:20]} 52. Bg2 {[%clk 0:00:37]}  Kb8 {[%clk 0:00:19]} 53. Na4 {[%clk 0:00:36]}  Kc7 {[%clk 0:00:19]} 54. Be4 {[%clk 0:00:37]}  Bd7 {[%clk 0:00:19]} 55. Nc5 {[%clk 0:00:37]}  Bc6 {[%clk 0:00:19]} 56. Kc3 {[%clk 0:00:29]}  Bxe4 {[%clk 0:00:17]} 57. Nxe4 {[%clk 0:00:29]}  Kc6 {[%clk 0:00:17]} 58. Nd6 {[%clk 0:00:23]}  Nd7 {[%clk 0:00:17]} 59. Nc8 {[%clk 0:00:21]}  Nf8 {[%clk 0:00:14]} 60. Kd4 {[%clk 0:00:21]}  Kd7 {[%clk 0:00:14]} 61. Nd6 {[%clk 0:00:20]}  Kc6 {[%clk 0:00:14]} 62. Nf7 {[%clk 0:00:20]}  Nd7 {[%clk 0:00:15]} 63. Nd8+ {[%clk 0:00:20]}  Kc7 {[%clk 0:00:14]} 64. Nxe6+ {[%clk 0:00:21]}  Kc6 {[%clk 0:00:14]} 65. Nd8+ {[%clk 0:00:20]}  Kc7 {[%clk 0:00:15]} 66. Nf7 {[%clk 0:00:21]}  Nf8 {[%clk 0:00:14]} 67. Kd5 {[%clk 0:00:20]}  Kd7 {[%clk 0:00:14]} 68. Nd6 {[%clk 0:00:20]}  Kc7 {[%clk 0:00:12]} 69. Ne8+ {[%clk 0:00:20]}  Kd7 {[%clk 0:00:12]} 70. Nf6+ {[%clk 0:00:20]}  Ke7 {[%clk 0:00:11]} 71. Ng8+ {[%clk 0:00:19]}  Kf7 {[%clk 0:00:11]} 72. Nh6+ {[%clk 0:00:19]}  Ke7 {[%clk 0:00:11]} 73. Ng8+ {[%clk 0:00:17]}  Kf7 {[%clk 0:00:12]} 74. Nf6 {[%clk 0:00:16]}  Ke7 {[%clk 0:00:12]} 75. Kc5 {[%clk 0:00:16]}  Kd8 {[%clk 0:00:10]} 76. Kb6 {[%clk 0:00:16]}  Kc8 {[%clk 0:00:11]} 77. c5 {[%clk 0:00:14]}  Ne6 {[%clk 0:00:11]} 78. Nd5 {[%clk 0:00:12]}  Nd4 {[%clk 0:00:11]} 79. Ne7+ {[%clk 0:00:13]}  Kd7 {[%clk 0:00:11]} 80. Nxg6 {[%clk 0:00:13]}  Kc8 {[%clk 0:00:06]} 81. Ne7+ {[%clk 0:00:13]}  Kb8 {[%clk 0:00:07]} 82. f5 {[%clk 0:00:13]}  Nc6 {[%clk 0:00:02]} 83. Nxc6+ {[%clk 0:00:12]}  bxc6 {[%clk 0:00:02]} 84. f6 {[%clk 0:00:13]}  Kc8 {[%clk 0:00:02]} 85. f7 {[%clk 0:00:14]}  Kd7 {[%clk 0:00:03]} 86. f8=Q {[%clk 0:00:14]}  Ke6 {[%clk 0:00:03]} 87. Qf6+ {[%clk 0:00:15]}  Kd5 {[%clk 0:00:04]} 88. Qxc6+ {[%clk 0:00:15]}  Kd4 {[%clk 0:00:04]} 89. Kxa6 {[%clk 0:00:16]}  Kc4 {[%clk 0:00:04]} 90. Kb6 {[%clk 0:00:17]}  Kb4 {[%clk 0:00:05]} 91. a6 {[%clk 0:00:18]}  Kc4 {[%clk 0:00:05]} 92. a7 {[%clk 0:00:19]}  Kc3 {[%clk 0:00:06]} 93. Qd6 {[%clk 0:00:19]}  Kc4 {[%clk 0:00:06]} 94. e6 {[%clk 0:00:20]}  Kc3 {[%clk 0:00:07]} 95. e7 {[%clk 0:00:21]}  Kc2 {[%clk 0:00:08]} 96. e8=Q {[%clk 0:00:21]}  Kc3 {[%clk 0:00:09]} 97. Qe3+ {[%clk 0:00:21]}  Kc2 {[%clk 0:00:09]} 98. Qdd3+ {[%clk 0:00:21]} 1-0

[Event "January 9 Early 2024"]
[Site "https://www.chess.com"]
[Date "2024.01.11"]
[Round "2"]
[White "Yeritsyan, Hayk"]
[Black "Bogaudinov, Rushan"]
[Result "1-0"]
[Board "328"]
[TimeControl "180+1"]
[WhiteFideId "13307320"]
[BlackFideId "4129288"]
[WhiteElo "2660"]
[BlackElo "2386"]
[WhiteTeam "ARM"]
[BlackTeam "RUS"]
[WhiteClock "0:00:13"]
[BlackClock "0:00:09"]

1. c4 {[%clk 0:02:58]}  e5 {[%clk 0:02:59]} 2. Nc3 {[%clk 0:02:56]}  Nf6 {[%clk 0:02:59]} 3. g3 {[%clk 0:02:56]}  g6 {[%clk 0:02:58]} 4. Bg2 {[%clk 0:02:56]}  Bg7 {[%clk 0:02:59]} 5. e4 {[%clk 0:02:55]}  O-O {[%clk 0:02:58]} 6. d3 {[%clk 0:02:55]}  Nc6 {[%clk 0:02:58]} 7. Nge2 {[%clk 0:02:47]}  d6 {[%clk 0:02:58]} 8. O-O {[%clk 0:02:43]}  Nh5 {[%clk 0:02:51]} 9. h3 {[%clk 0:02:37]}  Nd4 {[%clk 0:02:41]} 10. Nxd4 {[%clk 0:02:36]}  exd4 {[%clk 0:02:42]} 11. Ne2 {[%clk 0:02:36]}  c5 {[%clk 0:02:43]} 12. g4 {[%clk 0:02:33]}  Nf6 {[%clk 0:02:42]} 13. f4 {[%clk 0:02:33]}  Ne8 {[%clk 0:02:38]} 14. Ng3 {[%clk 0:02:25]}  Qh4 {[%clk 0:02:36]} 15. Qe1 {[%clk 0:02:20]}  Rb8 {[%clk 0:02:35]} 16. a4 {[%clk 0:02:19]}  Bd7 {[%clk 0:02:33]} 17. Bd2 {[%clk 0:02:19]}  Bc6 {[%clk 0:02:30]} 18. Nf5 {[%clk 0:02:07]}  Qxe1 {[%clk 0:02:28]} 19. Ne7+ {[%clk 0:02:07]}  Kh8 {[%clk 0:02:29]} 20. Rfxe1 {[%clk 0:02:06]}  Bf6 {[%clk 0:02:22]} 21. Nxc6 {[%clk 0:02:02]}  bxc6 {[%clk 0:02:23]} 22. Bc1 {[%clk 0:02:00]}  Rb3 {[%clk 0:02:17]} 23. Rd1 {[%clk 0:01:53]}  Bd8 {[%clk 0:02:05]} 24. a5 {[%clk 0:01:48]}  Bc7 {[%clk 0:02:02]} 25. Kf1 {[%clk 0:01:45]}  Ng7 {[%clk 0:02:01]} 26. Ke2 {[%clk 0:01:44]}  Rfb8 {[%clk 0:02:00]} 27. Ra2 {[%clk 0:01:44]}  Ne6 {[%clk 0:01:58]} 28. Rf1 {[%clk 0:01:35]}  Kg7 {[%clk 0:01:49]} 29. Kd2 {[%clk 0:01:31]}  d5 {[%clk 0:01:41]} 30. exd5 {[%clk 0:01:28]}  Nxf4 {[%clk 0:01:38]} 31. Be4 {[%clk 0:01:19]}  cxd5 {[%clk 0:01:37]} 32. cxd5 {[%clk 0:01:16]}  Nxh3 {[%clk 0:01:29]} 33. Kc2 {[%clk 0:01:15]}  h6 {[%clk 0:01:26]} 34. d6 {[%clk 0:01:06]}  Bxd6 {[%clk 0:01:16]} 35. Bd5 {[%clk 0:01:07]}  R3b7 {[%clk 0:01:08]} 36. Bxb7 {[%clk 0:01:07]}  Rxb7 {[%clk 0:01:09]} 37. a6 {[%clk 0:01:01]}  Re7 {[%clk 0:01:06]} 38. Kd1 {[%clk 0:00:56]}  g5 {[%clk 0:00:58]} 39. Ra5 {[%clk 0:00:50]}  Nf4 {[%clk 0:00:54]} 40. Bxf4 {[%clk 0:00:42]}  Bxf4 {[%clk 0:00:45]} 41. Rb5 {[%clk 0:00:42]}  Re6 {[%clk 0:00:42]} 42. Rxc5 {[%clk 0:00:29]}  Rxa6 {[%clk 0:00:42]} 43. Ke2 {[%clk 0:00:30]}  Rb6 {[%clk 0:00:38]} 44. Rc2 {[%clk 0:00:27]}  Re6+ {[%clk 0:00:35]} 45. Kf2 {[%clk 0:00:17]}  Re3 {[%clk 0:00:34]} 46. Rd1 {[%clk 0:00:16]}  Rg3 {[%clk 0:00:26]} 47. b4 {[%clk 0:00:14]}  Rxg4 {[%clk 0:00:26]} 48. b5 {[%clk 0:00:15]}  Be3+ {[%clk 0:00:25]} 49. Kf3 {[%clk 0:00:15]}  Rf4+ {[%clk 0:00:25]} 50. Kg2 {[%clk 0:00:15]}  Rf6 {[%clk 0:00:22]} 51. Ra1 {[%clk 0:00:13]}  Rb6 {[%clk 0:00:22]} 52. Rc5 {[%clk 0:00:13]}  Rb7 {[%clk 0:00:19]} 53. Ra6 {[%clk 0:00:10]}  h5 {[%clk 0:00:19]} 54. Kf3 {[%clk 0:00:08]}  g4+ {[%clk 0:00:19]} 55. Kg3 {[%clk 0:00:08]}  Bd2 {[%clk 0:00:15]} 56. Rxh5 {[%clk 0:00:09]}  Be1+ {[%clk 0:00:10]} 57. Kxg4 {[%clk 0:00:09]}  Re7 {[%clk 0:00:08]} 58. Rd5 {[%clk 0:00:08]}  Bc3 {[%clk 0:00:06]} 59. Rg5+ {[%clk 0:00:06]}  Kf8 {[%clk 0:00:06]} 60. Rf5 {[%clk 0:00:06]}  Kg7 {[%clk 0:00:05]} 61. Rc6 {[%clk 0:00:04]}  Rb7 {[%clk 0:00:05]} 62. Ra6 {[%clk 0:00:04]}  Bd2 {[%clk 0:00:04]} 63. Kf3 {[%clk 0:00:04]}  Be3 {[%clk 0:00:04]} 64. Ke4 {[%clk 0:00:05]}  Re7+ {[%clk 0:00:04]} 65. Re5 {[%clk 0:00:05]}  Rc7 {[%clk 0:00:04]} 66. Rd5 {[%clk 0:00:05]}  Rb7 {[%clk 0:00:04]} 67. Rc6 {[%clk 0:00:05]}  Re7+ {[%clk 0:00:04]} 68. Re5 {[%clk 0:00:04]}  Rb7 {[%clk 0:00:04]} 69. Rd6 {[%clk 0:00:04]}  Bf2 {[%clk 0:00:04]} 70. Red5 {[%clk 0:00:04]}  Re7+ {[%clk 0:00:03]} 71. Kf3 {[%clk 0:00:04]}  Bg1 {[%clk 0:00:03]} 72. Rd7 {[%clk 0:00:05]}  Re6 {[%clk 0:00:03]} 73. Kg2 {[%clk 0:00:06]}  Rg6+ {[%clk 0:00:04]} 74. Kf1 {[%clk 0:00:05]}  Be3 {[%clk 0:00:04]} 75. Rf5 {[%clk 0:00:05]}  Kh6 {[%clk 0:00:04]} 76. Rfxf7 {[%clk 0:00:05]}  Rb6 {[%clk 0:00:04]} 77. Rh7+ {[%clk 0:00:05]}  Kg6 {[%clk 0:00:05]} 78. Rdg7+ {[%clk 0:00:06]}  Kf6 {[%clk 0:00:05]} 79. Rb7 {[%clk 0:00:07]}  Re6 {[%clk 0:00:04]} 80. Rhc7 {[%clk 0:00:06]}  Re5 {[%clk 0:00:03]} 81. Rc6+ {[%clk 0:00:07]}  Kf5 {[%clk 0:00:04]} 82. Rf7+ {[%clk 0:00:07]}  Kg5 {[%clk 0:00:04]} 83. Rfc7 {[%clk 0:00:03]}  Rxb5 {[%clk 0:00:03]} 84. Rc5+ {[%clk 0:00:04]}  Rxc5 {[%clk 0:00:04]} 85. Rxc5+ {[%clk 0:00:05]}  Kf4 {[%clk 0:00:05]} 86. Ke2 {[%clk 0:00:05]}  Kg4 {[%clk 0:00:04]} 87. Ra5 {[%clk 0:00:06]}  Kf4 {[%clk 0:00:04]} 88. Rxa7 {[%clk 0:00:06]}  Kg4 {[%clk 0:00:05]} 89. Re7 {[%clk 0:00:07]}  Kf4 {[%clk 0:00:05]} 90. Re4+ {[%clk 0:00:06]}  Kf5 {[%clk 0:00:05]} 91. Kf3 {[%clk 0:00:07]}  Kg5 {[%clk 0:00:05]} 92. Re5+ {[%clk 0:00:07]}  Kf6 {[%clk 0:00:06]} 93. Ke4 {[%clk 0:00:07]}  Kf7 {[%clk 0:00:05]} 94. Kd5 {[%clk 0:00:07]}  Kf6 {[%clk 0:00:05]} 95. Re4 {[%clk 0:00:07]}  Kf5 {[%clk 0:00:05]} 96. Re8 {[%clk 0:00:07]}  Kf6 {[%clk 0:00:04]} 97. Kd6 {[%clk 0:00:07]}  Kf5 {[%clk 0:00:04]} 98. Re4 {[%clk 0:00:08]}  Bf2 {[%clk 0:00:03]} 99. Re2 {[%clk 0:00:06]}  Bg1 {[%clk 0:00:03]} 100. Kd5 {[%clk 0:00:06]}  Be3 {[%clk 0:00:03]} 101. Re1 {[%clk 0:00:07]}  Kf4 {[%clk 0:00:03]} 102. Rf1+ {[%clk 0:00:07]}  Kg4 {[%clk 0:00:03]} 103. Ke4 {[%clk 0:00:08]}  Kg3 {[%clk 0:00:03]} 104. Rf3+ {[%clk 0:00:08]}  Kg4 {[%clk 0:00:03]} 105. Rxe3 {[%clk 0:00:06]}  dxe3 {[%clk 0:00:03]} 106. Kxe3 {[%clk 0:00:07]}  Kf5 {[%clk 0:00:04]} 107. Kd4 {[%clk 0:00:08]}  Ke6 {[%clk 0:00:04]} 108. Kc5 {[%clk 0:00:07]}  Kd7 {[%clk 0:00:04]} 109. Kd5 {[%clk 0:00:08]}  Ke7 {[%clk 0:00:04]} 110. Kc6 {[%clk 0:00:08]}  Kd8 {[%clk 0:00:05]} 111. Kd6 {[%clk 0:00:06]}  Kc8 {[%clk 0:00:04]} 112. Ke7 {[%clk 0:00:06]}  Kc7 {[%clk 0:00:04]} 113. d4 {[%clk 0:00:07]}  Kc6 {[%clk 0:00:05]} 114. Ke6 {[%clk 0:00:07]}  Kc7 {[%clk 0:00:05]} 115. d5 {[%clk 0:00:08]}  Kd8 {[%clk 0:00:05]} 116. Kd6 {[%clk 0:00:09]}  Kc8 {[%clk 0:00:05]} 117. Ke7 {[%clk 0:00:09]}  Kc7 {[%clk 0:00:05]} 118. d6+ {[%clk 0:00:10]}  Kc8 {[%clk 0:00:06]} 119. d7+ {[%clk 0:00:11]}  Kb7 {[%clk 0:00:06]} 120. d8=Q {[%clk 0:00:11]}  Ka7 {[%clk 0:00:07]} 121. Qd5 {[%clk 0:00:10]}  Kb6 {[%clk 0:00:08]} 122. Qc4 {[%clk 0:00:10]}  Kb7 {[%clk 0:00:08]} 123. Qc5 {[%clk 0:00:10]}  Ka6 {[%clk 0:00:07]} 124. Qb4 {[%clk 0:00:11]}  Ka7 {[%clk 0:00:07]} 125. Kd7 {[%clk 0:00:12]}  Ka8 {[%clk 0:00:08]} 126. Kc7 {[%clk 0:00:12]}  Ka7 {[%clk 0:00:09]} 127. Qa4# {[%clk 0:00:13]} 1-0

[Event "January 9 Early 2024"]
[Site "https://www.chess.com"]
[Date "2024.01.11"]
[Round "3"]
[White "Khegay, Yuliya"]
[Black "Waldhausen Gordon, Frederick"]
[Result "0-1"]
[Board "1"]
[TimeControl "180+1"]
[WhiteFideId "14205394"]
[BlackFideId "2409143"]
[WhiteElo "2198"]
[BlackElo "2540"]
[WhiteTeam "UZB"]
[BlackTeam "SCO"]
[WhiteClock "0:02:44"]
[BlackClock "0:02:42"]

1. b3 {[%clk 0:03:00]}  e5 {[%clk 0:02:57]} 2. Bb2 {[%clk 0:03:00]}  Nc6 {[%clk 0:02:57]} 3. e3 {[%clk 0:03:01]}  Nf6 {[%clk 0:02:57]} 4. Bb5 {[%clk 0:03:02]}  d6 {[%clk 0:02:55]} 5. d4 {[%clk 0:03:01]}  exd4 {[%clk 0:02:55]} 6. exd4 {[%clk 0:03:00]}  Bd7 {[%clk 0:02:54]} 7. d5 {[%clk 0:02:57]}  Ne5 {[%clk 0:02:53]} 8. Bxd7+ {[%clk 0:02:55]}  Nexd7 {[%clk 0:02:54]} 9. Nf3 {[%clk 0:02:53]}  Qe7+ {[%clk 0:02:54]} 10. Kd2 {[%clk 0:02:51]}  Ne4+ {[%clk 0:02:49]} 11. Kc1 {[%clk 0:02:50]}  Nxf2 {[%clk 0:02:48]} 12. Re1 {[%clk 0:02:47]}  Nxd1 {[%clk 0:02:47]} 13. Rxe7+ {[%clk 0:02:47]}  Bxe7 {[%clk 0:02:46]} 14. Kxd1 {[%clk 0:02:48]}  Bf6 {[%clk 0:02:46]} 15. c3 {[%clk 0:02:48]}  Nb6 {[%clk 0:02:45]} 16. Nbd2 {[%clk 0:02:44]}  Nxd5 {[%clk 0:02:44]} 17. Kc2 {[%clk 0:02:45]}  O-O-O {[%clk 0:02:43]} 18. Rd1 {[%clk 0:02:44]}  Ne3+ {[%clk 0:02:42]} 0-1

[Event "January 9 Early 2024"]
[Site "https://www.chess.com"]
[Date "2024.01.11"]
[Round "3"]
[White "Castellano, Christopher"]
[Black "Sasvatha A"]
[Result "1-0"]
[Board "3"]
[TimeControl "180+1"]
[WhiteFideId "5203651"]
[BlackFideId "45010862"]
[WhiteElo "2410"]
[BlackElo "2165"]
[WhiteTeam "PHI"]
[BlackTeam "IND"]
[WhiteClock "0:02:44"]
[BlackClock "0:02:08"]

1. d4 {[%clk 0:03:00]}  Nf6 {[%clk 0:02:58]} 2. Bf4 {[%clk 0:03:01]}  d6 {[%clk 0:02:58]} 3. Nc3 {[%clk 0:03:01]}  g6 {[%clk 0:02:58]} 4. e4 {[%clk 0:03:02]}  Nbd7 {[%clk 0:02:55]} 5. Nf3 {[%clk 0:03:00]}  Bg7 {[%clk 0:02:55]} 6. Qe2 {[%clk 0:03:01]}  O-O {[%clk 0:02:54]} 7. O-O-O {[%clk 0:03:02]}  c6 {[%clk 0:02:53]} 8. e5 {[%clk 0:03:01]}  Nh5 {[%clk 0:02:49]} 9. Bg3 {[%clk 0:02:59]}  Nxg3 {[%clk 0:02:43]} 10. hxg3 {[%clk 0:03:00]}  Qa5 {[%clk 0:02:40]} 11. e6 {[%clk 0:02:55]}  Nf6 {[%clk 0:02:35]} 12. exf7+ {[%clk 0:02:53]}  Rxf7 {[%clk 0:02:36]} 13. Kb1 {[%clk 0:02:51]}  Bg4 {[%clk 0:02:35]} 14. Qe3 {[%clk 0:02:48]}  Bxf3 {[%clk 0:02:30]} 15. gxf3 {[%clk 0:02:49]}  Rff8 {[%clk 0:02:22]} 16. Bc4+ {[%clk 0:02:47]}  d5 {[%clk 0:02:20]} 17. Bd3 {[%clk 0:02:46]}  Rae8 {[%clk 0:02:17]} 18. Qe6+ {[%clk 0:02:46]}  Kh8 {[%clk 0:02:16]} 19. Bxg6 {[%clk 0:02:44]}  Qd8 {[%clk 0:02:08]} 1-0

[Event "January 9 Early 2024"]
[Site "https://www.chess.com"]
[Date "2024.01.11"]
[Round "3"]
[White "Vestby-Ellingsen, Mads"]
[Black "Gruzman, Ilya"]
[Result "1-0"]
[Board "9"]
[TimeControl "180+1"]
[WhiteFideId "1520857"]
[BlackFideId "2812703"]
[WhiteElo "2610"]
[BlackElo "2408"]
[WhiteTeam "NOR"]
[BlackTeam "ISR"]
[WhiteClock "0:02:19"]
[BlackClock "0:01:17"]

1. e4 {[%clk 0:03:00]}  c5 {[%clk 0:02:59]} 2. Nf3 {[%clk 0:03:00]}  e6 {[%clk 0:03:00]} 3. d4 {[%clk 0:02:58]}  cxd4 {[%clk 0:03:00]} 4. Bg5 {[%clk 0:02:58]}  f6 {[%clk 0:02:42]} 5. Bc1 {[%clk 0:02:54]}  e5 {[%clk 0:02:42]} 6. c3 {[%clk 0:02:53]}  dxc3 {[%clk 0:02:38]} 7. Nxc3 {[%clk 0:02:54]}  Nc6 {[%clk 0:02:38]} 8. Bc4 {[%clk 0:02:53]}  Bb4 {[%clk 0:02:28]} 9. O-O {[%clk 0:02:51]}  Bxc3 {[%clk 0:02:22]} 10. bxc3 {[%clk 0:02:50]}  Nge7 {[%clk 0:02:23]} 11. Nh4 {[%clk 0:02:45]}  Na5 {[%clk 0:02:03]} 12. Bd5 {[%clk 0:02:19]}  Nxd5 {[%clk 0:02:00]} 13. Qxd5 {[%clk 0:02:20]}  Nc6 {[%clk 0:01:53]} 14. Nf5 {[%clk 0:02:18]}  Ne7 {[%clk 0:01:20]} 15. Nd6+ {[%clk 0:02:18]}  Kf8 {[%clk 0:01:17]} 16. Qf7# {[%clk 0:02:19]} 1-0

[Event "January 9 Early 2024"]
[Site "https://www.chess.com"]
[Date "2024.01.11"]
[Round "3"]
[White "Klukin, Kirill"]
[Black "Zilleruelo Irizarry, Diego"]
[Result "1-0"]
[Board "11"]
[TimeControl "180+1"]
[WhiteFideId "24199273"]
[BlackFideId "3101460"]
[WhiteElo "2814"]
[BlackElo "2305"]
[WhiteTeam "RUS"]
[BlackTeam "PUR"]
[WhiteClock "0:02:05"]
[BlackClock "0:01:54"]

1. c4 {[%clk 0:03:00]}  e5 {[%clk 0:02:57]} 2. Nc3 {[%clk 0:03:00]}  Nf6 {[%clk 0:02:57]} 3. g3 {[%clk 0:03:01]}  Nc6 {[%clk 0:02:57]} 4. Bg2 {[%clk 0:03:01]}  Be7 {[%clk 0:02:56]} 5. e3 {[%clk 0:03:00]}  O-O {[%clk 0:02:56]} 6. Nge2 {[%clk 0:03:00]}  d6 {[%clk 0:02:55]} 7. O-O {[%clk 0:03:01]}  Bg4 {[%clk 0:02:55]} 8. Rb1 {[%clk 0:02:56]}  Bf5 {[%clk 0:02:51]} 9. d3 {[%clk 0:02:54]}  Nb4 {[%clk 0:02:50]} 10. e4 {[%clk 0:02:54]}  Be6 {[%clk 0:02:48]} 11. a3 {[%clk 0:02:52]}  Nc6 {[%clk 0:02:48]} 12. b4 {[%clk 0:02:53]}  Nd4 {[%clk 0:02:48]} 13. Nxd4 {[%clk 0:02:51]}  exd4 {[%clk 0:02:49]} 14. Ne2 {[%clk 0:02:52]}  c5 {[%clk 0:02:45]} 15. bxc5 {[%clk 0:02:51]}  dxc5 {[%clk 0:02:46]} 16. Rxb7 {[%clk 0:02:51]}  Nd7 {[%clk 0:02:42]} 17. Nf4 {[%clk 0:02:32]}  Qc8 {[%clk 0:02:41]} 18. Nxe6 {[%clk 0:02:25]}  Qxb7 {[%clk 0:02:41]} 19. Nxf8 {[%clk 0:02:22]}  Rxf8 {[%clk 0:02:39]} 20. Bf4 {[%clk 0:02:22]}  Qb2 {[%clk 0:02:30]} 21. Qa4 {[%clk 0:02:14]}  Qb7 {[%clk 0:02:09]} 22. e5 {[%clk 0:02:09]}  Qc7 {[%clk 0:02:03]} 23. e6 {[%clk 0:02:06]}  Ne5 {[%clk 0:02:03]} 24. exf7+ {[%clk 0:02:06]}  Rxf7 {[%clk 0:02:02]} 25. Bd5 {[%clk 0:02:06]}  Bd6 {[%clk 0:01:54]} 26. Qe8+ {[%clk 0:02:05]} 1-0

[Event "January 9 Early 2024"]
[Site "https://www.chess.com"]
[Date "2024.01.11"]
[Round "3"]
[White "Pourkashiyan, Atousa"]
[Black "Guevara Sanchez, Erick Marvin"]
[Result "1-0"]
[Board "16"]
[TimeControl "180+1"]
[WhiteFideId "12502014"]
[BlackFideId "6700136"]
[WhiteElo "2484"]
[BlackElo "2212"]
[WhiteTeam "USA"]
[BlackTeam "ESA"]
[WhiteClock "0:01:38"]
[BlackClock "0:01:53"]

1. e4 {[%clk 0:02:48]}  c5 {[%clk 0:02:58]} 2. c3 {[%clk 0:02:44]}  e6 {[%clk 0:02:56]} 3. d4 {[%clk 0:02:40]}  d5 {[%clk 0:02:56]} 4. e5 {[%clk 0:02:37]}  Nc6 {[%clk 0:02:57]} 5. Nf3 {[%clk 0:02:26]}  Qb6 {[%clk 0:02:56]} 6. Be2 {[%clk 0:02:24]}  Nh6 {[%clk 0:02:53]} 7. O-O {[%clk 0:02:23]}  Nf5 {[%clk 0:02:52]} 8. dxc5 {[%clk 0:02:23]}  Bxc5 {[%clk 0:02:51]} 9. b4 {[%clk 0:02:23]}  Be7 {[%clk 0:02:44]} 10. Bd3 {[%clk 0:02:19]}  g6 {[%clk 0:02:42]} 11. Re1 {[%clk 0:02:13]}  h5 {[%clk 0:02:41]} 12. Bg5 {[%clk 0:02:11]}  Bd7 {[%clk 0:02:35]} 13. Nbd2 {[%clk 0:01:59]}  d4 {[%clk 0:02:33]} 14. Bxe7 {[%clk 0:01:55]}  Ncxe7 {[%clk 0:02:13]} 15. Ne4 {[%clk 0:01:50]}  dxc3 {[%clk 0:02:12]} 16. Nf6+ {[%clk 0:01:48]}  Kd8 {[%clk 0:02:09]} 17. Bxf5 {[%clk 0:01:47]}  Qc7 {[%clk 0:02:07]} 18. Be4 {[%clk 0:01:44]}  Kc8 {[%clk 0:02:05]} 19. Rc1 {[%clk 0:01:43]}  a5 {[%clk 0:01:57]} 20. Nxd7 {[%clk 0:01:38]}  Qxd7 {[%clk 0:01:55]} 21. Rxc3+ {[%clk 0:01:38]}  Nc6 {[%clk 0:01:54]} 22. b5 {[%clk 0:01:37]}  Qxd1 {[%clk 0:01:53]} 23. Rxd1 {[%clk 0:01:38]} 1-0